fUST/lending_fUST_20250610
["ID","MTS","AMOUNT","RATE_DAILY","PERIOD"]
[365242498,1749561051699,-460.0,0.00022739,4]
[365242500,1749561051708,-460.0,0.00022739,4]
[365242502,1749561051717,-460.0,0.00022739,4]
[365242504,1749561051727,-460.0,0.00022739,4]
[365242505,1749561051736,-476.21,0.00022739,4]
[365242507,1749561051746,-460.0,0.00022739,4]
[365242509,1749561051755,-460.0,0.00022739,4]
[365242511,1749561051765,-570.54,0.00022739,4]
[365242513,1749561051775,-462.2,0.00022739,4]
[365242515,1749561051784,-460.0,0.00022739,4]
[365242517,1749561051793,-460.0,0.00022739,4]
[365242519,1749561051803,-2814.84,0.00022739,4]
[365242521,1749561051814,-320.0,0.00022739,4]
[365242523,1749561051824,-460.0,0.00022739,4]
[365242525,1749561051834,-1561.2,0.00022739,4]
[365242527,1749561051844,-192.65463528,0.00022739,4]
[365242529,1749561051853,-240.0,0.00022739,4]
[365242531,1749561051863,-460.0,0.00022739,4]
[365242533,1749561051872,-460.0,0.00022739,4]
[365242535,1749561051881,-572.65,0.00022739,4]
[365242537,1749561051891,-460.0,0.00022739,4]
[365242539,1749561051900,-3102.55,0.00022739,4]
[365242541,1749561051910,-460.0,0.00022739,4]
[365242543,1749561051919,-460.0,0.00022739,4]
[365242545,1749561051928,-1032.23,0.00022739,4]
[365242547,1749561051938,-460.0,0.00022739,4]
[365242549,1749561051947,-460.0,0.00022739,4]
[365242551,1749561051956,-691.63,0.00022739,4]
[365242553,1749561051965,-2508.23,0.00022739,4]
[365242555,1749561051975,-460.0,0.00022739,4]
[365242557,1749561051985,-1142.03,0.00022739,4]
[365242559,1749561051994,-460.0,0.00022739,4]
[365242561,1749561052003,-2970.71,0.00022739,4]
[365242563,1749561052012,-764.17,0.00022739,4]
[365242565,1749561052022,-460.0,0.00022739,4]
[365242567,1749561052031,-460.0,0.00022739,4]
[365242569,1749561052040,-320.0,0.00022739,4]
[365242571,1749561052049,-2964.47,0.00022739,4]
[365242573,1749561052059,-1685.96,0.00022739,4]
[365242575,1749561052069,-603.4,0.00022739,4]
[365242577,1749561052078,-741.45,0.00022739,2]
[365242579,1749561052087,-600.13348515,0.00022739,4]
[365242581,1749561052096,-206.84266659,0.00022739,4]
[365242583,1749561052105,-460.0,0.00022739,4]
[365242585,1749561052114,-657.06,0.00022739,4]
[365242587,1749561052123,-460.0,0.00022739,4]
[365242589,1749561052133,-460.0,0.00022739,4]
[365242591,1749561052143,-1753.44,0.00022739,4]
[365242593,1749561052152,-460.0,0.00022739,4]
[365242595,1749561052161,-460.0,0.00022739,4]
[365242597,1749561052171,-460.0,0.00022739,4]
[365242599,1749561052181,-2332.21,0.00022739,4]
[365242601,1749561052190,-1800.0,0.00022768,2]
[365242603,1749561052199,-1047.60775708,0.00022831,8]
[365242605,1749561052210,-172.681,0.00022841,2]
[365242607,1749561052219,-150.124,0.00022841,2]
[365242609,1749561052228,-150.125,0.00022841,2]
[365242611,1749561052237,-150.184,0.00022841,2]
[365242613,1749561052246,-156.305,0.00022841,2]
[365242615,1749561052255,-150.0,0.00022841,2]
[365242617,1749561052264,-963.0,0.00022852,2]
[365242619,1749561052274,-653.0,0.00022852,2]
[365242621,1749561052284,-2160.0,0.00022852,2]
[365242623,1749561052293,-405.0,0.00022852,2]
[365242625,1749561052302,-43103.50224672,0.0002295,7]
[365242627,1749561052311,-43103.50224672,0.0002295,7]
[365242629,1749561052320,-1047.60775708,0.00022969,8]
[365242631,1749561052329,-160.02203713,0.00022989,2]
[365242633,1749561052339,-5000.0,0.00022989,2]
[365242635,1749561052348,-232.38738173,0.00022989,2]
[365242637,1749561052357,-1688.0,0.00022989,2]
[365242639,1749561052367,-500.0,0.00022989,2]
[365242641,1749561052376,-500.0,0.00022989,2]
[365242643,1749561052385,-500.0,0.00022989,2]
[365242645,1749561052394,-500.0,0.00022989,2]
[365242647,1749561052403,-500.0,0.00022989,2]
[365242649,1749561052412,-500.0,0.00022989,2]
[365242651,1749561052421,-500.0,0.00022989,2]
[365242653,1749561052429,-500.0,0.00022989,2]
[365242655,1749561052439,-500.0,0.00022989,2]
[365242657,1749561052448,-500.0,0.00022989,2]
[365242659,1749561052457,-500.0,0.00022989,2]
[365242661,1749561052466,-500.0,0.00022989,2]
[365242663,1749561052477,-500.0,0.00022989,2]
[365242665,1749561052486,-500.0,0.00022989,2]
[365242667,1749561052496,-500.0,0.00022989,2]
[365242669,1749561052506,-500.0,0.00022989,2]
[365242671,1749561052515,-500.0,0.00022989,2]
[365242673,1749561052525,-500.0,0.00022989,2]
[365242675,1749561052534,-500.0,0.00022989,2]
[365242677,1749561052544,-1477.59954943,0.00022989,2]
[365242679,1749561052553,-500.0,0.00022989,2]
[365242681,1749561052564,-500.0,0.00022989,2]
[365242683,1749561052574,-500.0,0.00022989,2]
[365242685,1749561052583,-500.0,0.00022989,2]
[365242687,1749561052592,-500.0,0.00022989,2]
[365242689,1749561052602,-500.0,0.00022989,2]
[365242691,1749561052612,-500.0,0.00022989,2]
[365242693,1749561052621,-500.0,0.00022989,2]
[365242695,1749561052631,-207.4,0.00022989,2]
[365242698,1749561052644,-500.0,0.00022989,2]
[365242701,1749561052660,-500.0,0.00022989,2]
[365242703,1749561052674,-500.0,0.00022989,2]
[365242705,1749561052687,-16000.0,0.00022999,2]
[365242708,1749561052700,-13917.0,0.00023,2]
[365242710,1749561052714,-185.0,0.00023,5]
[365242713,1749561052728,-185.0,0.00023,5]
[365242715,1749561052742,-842.5625,0.00023,7]
[365242718,1749561052755,-460.0,0.00023013,4]
[365242720,1749561052768,-460.0,0.00023013,4]
[365242723,1749561052782,-460.0,0.00023013,4]
[365242725,1749561052795,-460.0,0.00023013,4]
[365242727,1749561052808,-548.64,0.00023013,4]
[365242730,1749561052820,-460.0,0.00023013,4]
[365242732,1749561052832,-460.0,0.00023013,4]
[365242735,1749561052846,-743.81,0.00023013,4]
[365242737,1749561052859,-460.0,0.00023013,4]
[365242739,1749561052870,-460.0,0.00023013,4]
[365242741,1749561052880,-460.0,0.00023013,4]
[365242744,1749561052892,-460.0,0.00023013,4]
[365242746,1749561052904,-460.0,0.00023013,4]
[365242748,1749561052917,-460.0,0.00023013,4]
[365242751,1749561052931,-563.59544499,0.00023013,4]
[365242753,1749561052944,-460.0,0.00023013,4]
[365242756,1749561052957,-460.0,0.00023013,4]
[365242758,1749561052971,-240.0,0.00023013,4]
[365242760,1749561052983,-460.0,0.00023013,4]
[365242763,1749561052994,-460.0,0.00023013,4]
[365242765,1749561053004,-460.0,0.00023013,4]
[365242767,1749561053016,-460.0,0.00023013,4]
[365242770,1749561053030,-300.0,0.00023013,4]
[365242772,1749561053044,-244.92835629,0.00023013,4]
[365242774,1749561053054,-460.0,0.00023013,4]
[365242776,1749561053066,-556.97,0.00023013,4]
[365242779,1749561053078,-460.0,0.00023013,4]
[365242781,1749561053091,-460.0,0.00023013,4]
[365242783,1749561053102,-460.0,0.00023013,4]
[365242785,1749561053113,-734.77,0.00023013,4]
[365242788,1749561053124,-460.0,0.00023013,4]
[365242790,1749561053138,-460.0,0.00023013,4]
[365242792,1749561053149,-300.0,0.00023013,4]
[365242794,1749561053161,-801.41,0.00023013,4]
[365242797,1749561053173,-341.02993817,0.00023013,4]
[365242799,1749561053186,-1658.85,0.00023013,4]
[365242801,1749561053197,-213.266705,0.00023013,7]
[365242804,1749561053210,-460.0,0.00023013,4]
[365242806,1749561053222,-1213.09,0.00023013,4]
[365242808,1749561053233,-460.0,0.00023013,4]
[365242810,1749561053245,-151.0,0.00023013,7]
[365242812,1749561053257,-460.0,0.00023013,4]
[365242815,1749561053269,-514.93,0.00023013,4]
[365242817,1749561053282,-460.0,0.00023013,4]
[365242819,1749561053294,-1402.9,0.00023013,4]
[365242822,1749561053306,-460.0,0.00023013,4]
[365242824,1749561053317,-460.0,0.00023013,4]
[365242826,1749561053329,-460.0,0.00023013,4]
[365242828,1749561053341,-300.0,0.00023013,4]
[365242830,1749561053352,-314.32842239,0.00023013,4]
[365242833,1749561053364,-460.0,0.00023013,4]
[365242835,1749561053375,-476.21,0.00023013,4]
[365242837,1749561053386,-460.0,0.00023013,4]
[365242839,1749561053398,-460.0,0.00023013,4]
[365242842,1749561053409,-570.54,0.00023013,4]
[365242844,1749561053421,-462.2,0.00023013,4]
[365242846,1749561053432,-460.0,0.00023013,4]
[365242849,1749561053443,-460.0,0.00023013,4]
[365242851,1749561053455,-2814.84,0.00023013,4]
[365242853,1749561053467,-460.0,0.00023013,4]
[365242855,1749561053478,-1561.2,0.00023013,4]
[365242858,1749561053490,-290.0,0.00023013,4]
[365242860,1749561053503,-300.0,0.00023013,4]
[365242862,1749561053515,-572.65,0.00023013,4]
[365242864,1749561053528,-460.0,0.00023013,4]
[365242867,1749561053539,-3102.55,0.00023013,4]
[365242869,1749561053551,-460.0,0.00023013,4]
[365242870,1749561053564,-460.0,0.00023013,4]
[365242871,1749561053576,-1032.23,0.00023013,4]
[365242872,1749561053587,-259.80597,0.00023013,4]
[365242873,1749561053597,-460.0,0.00023013,4]
[365242875,1749561053607,-691.63,0.00023013,4]
[365242877,1749561053617,-2508.23,0.00023013,4]
[365242879,1749561053627,-460.0,0.00023013,4]
[365242881,1749561053637,-1142.03,0.00023013,4]
[365242883,1749561053647,-460.0,0.00023013,4]
[365242885,1749561053657,-2970.71,0.00023013,4]
[365242887,1749561053667,-764.17,0.00023013,4]
[365242889,1749561053676,-460.0,0.00023013,4]
[365242891,1749561053686,-460.0,0.00023013,4]
[365242893,1749561053696,-2964.47,0.00023013,4]
[365242895,1749561053705,-1685.96,0.00023013,4]
[365242897,1749561053715,-603.4,0.00023013,4]
[365242899,1749561053725,-741.45,0.00023013,2]
[365242901,1749561053735,-460.0,0.00023013,4]
[365242903,1749561053744,-657.06,0.00023013,4]
[365242905,1749561053754,-460.0,0.00023013,4]
[365242907,1749561053764,-359.10420053,0.00023013,4]
[365242910,1749561053774,-1753.44,0.00023013,4]
[365242911,1749561053784,-460.0,0.00023013,4]
[365242914,1749561053794,-460.0,0.00023013,4]
[365242916,1749561053804,-460.0,0.00023013,4]
[365242917,1749561053814,-2332.21,0.00023013,4]
[365242919,1749561053824,-2000.0,0.00023016,2]
[365242921,1749561053834,-2000.0,0.00023016,2]
[365242923,1749561053843,-251.12974051,0.00023031,2]
[365242926,1749561053853,-1750.456,0.00023044,2]
[365242928,1749561053863,-1815.222872,0.00023099,2]
[365242930,1749561053872,-1047.60775708,0.00023107,8]
[365242932,1749561053882,-1882.38611826,0.00023154,2]
[365242934,1749561053892,-1952.03440464,0.00023209,2]
[365242936,1749561053901,-1047.60775708,0.00023245,8]
[365242938,1749561053911,-843.45475139,0.00023264,2]
[365242940,1749561053920,-460.0,0.00023287,4]
[365242942,1749561053929,-460.0,0.00023287,4]
[365242944,1749561053939,-460.0,0.00023287,4]
[365242946,1749561053948,-460.0,0.00023287,4]
[365242947,1749561053958,-548.64,0.00023287,4]
[365242950,1749561053967,-454.98331165,0.00023287,4]
[365242952,1749561053976,-172.89681908,0.00023287,4]
[365242954,1749561053985,-743.81,0.00023287,4]
[365242956,1749561053995,-170.78,0.00023287,4]
[365242958,1749561054005,-460.0,0.00023287,4]
[365242960,1749561054014,-460.0,0.00023287,4]
[365242985,1749561054251,-460.0,0.00023287,4]
[365242989,1749561054272,-460.0,0.00023287,4]
[365242991,1749561054284,-154.39118639,0.00023287,4]
[365242993,1749561054294,-252.17934884,0.00023287,4]
[365242995,1749561054303,-460.0,0.00023287,4]
[365242997,1749561054314,-460.0,0.00023287,4]
[365242999,1749561054323,-200.0,0.00023287,4]
[365243001,1749561054332,-460.0,0.00023287,4]
[365243003,1749561054342,-460.0,0.00023287,4]
[365243005,1749561054352,-460.0,0.00023287,4]
[365243007,1749561054362,-556.97,0.00023287,4]
[365243009,1749561054372,-460.0,0.00023287,4]
[365243011,1749561054381,-460.0,0.00023287,4]
[365243013,1749561054391,-460.0,0.00023287,4]
[365243015,1749561054401,-734.77,0.00023287,4]
[365243017,1749561054410,-460.0,0.00023287,4]
[365243019,1749561054420,-460.0,0.00023287,4]
[365243021,1749561054430,-151.0,0.00023287,7]
[365243023,1749561054439,-801.41,0.00023287,4]
[365243025,1749561054449,-1658.85,0.00023287,4]
[365243027,1749561054459,-460.0,0.00023287,4]
[365243029,1749561054469,-1213.09,0.00023287,4]
[365243031,1749561054479,-460.0,0.00023287,4]
[365243033,1749561054489,-460.0,0.00023287,4]
[365243035,1749561054499,-514.93,0.00023287,4]
[365243037,1749561054509,-460.0,0.00023287,4]
[365243040,1749561054520,-1402.9,0.00023287,4]
[365243042,1749561054530,-460.0,0.00023287,4]
[365243044,1749561054540,-460.0,0.00023287,4]
[365243046,1749561054550,-460.0,0.00023287,4]
[365243048,1749561054559,-460.0,0.00023287,4]
[365243050,1749561054569,-476.21,0.00023287,4]
[365243052,1749561054579,-460.0,0.00023287,4]
[365243054,1749561054589,-460.0,0.00023287,4]
[365243056,1749561054598,-570.54,0.00023287,4]
[365243058,1749561054608,-462.2,0.00023287,4]
[365243060,1749561054617,-460.0,0.00023287,4]
[365243061,1749561054626,-332.04794282,0.00023287,4]
[365243064,1749561054636,-2814.84,0.00023287,4]
[365243066,1749561054645,-440.07284364,0.00023287,4]
[365243067,1749561054655,-1561.2,0.00023287,4]
[365243070,1749561054665,-572.65,0.00023287,4]
[365243071,1749561054674,-460.0,0.00023287,4]
[365243074,1749561054684,-3102.55,0.00023287,4]
[365243076,1749561054694,-460.0,0.00023287,4]
[365243078,1749561054704,-460.0,0.00023287,4]
[365243080,1749561054714,-1032.23,0.00023287,4]
[365243082,1749561054723,-460.0,0.00023287,4]
[365243084,1749561054733,-691.63,0.00023287,4]
[365243086,1749561054743,-2508.23,0.00023287,4]
[365243088,1749561054753,-460.0,0.00023287,4]
[365243090,1749561054762,-1142.03,0.00023287,4]
[365243092,1749561054772,-327.6202503,0.00023287,4]
[365243094,1749561054781,-2970.71,0.00023287,4]
[365243096,1749561054791,-764.17,0.00023287,4]
[365243098,1749561054801,-280.0,0.00023287,4]
[365243100,1749561054810,-460.0,0.00023287,4]
[365243102,1749561054820,-2964.47,0.00023287,4]
[365243104,1749561054829,-1685.96,0.00023287,4]
[365243106,1749561054839,-603.4,0.00023287,4]
[365243108,1749561054849,-741.45,0.00023287,2]
[365243110,1749561054858,-460.0,0.00023287,4]
[365243112,1749561054868,-657.06,0.00023287,4]
[365243114,1749561054877,-460.0,0.00023287,4]
[365243116,1749561054887,-460.0,0.00023287,4]
[365243118,1749561054896,-1753.44,0.00023287,4]
[365243120,1749561054906,-460.0,0.00023287,4]
[365243122,1749561054916,-460.0,0.00023287,4]
[365243124,1749561054925,-2332.21,0.00023287,4]
[365243126,1749561054934,-151.0,0.00023316,7]
[365243128,1749561054944,-2400.0,0.00023316,2]
[365243130,1749561054953,-1047.60775708,0.00023383,9]
[365243132,1749561054962,-2591.48635315,0.00023461,2]
[365243134,1749561054972,-587.0,0.00023471,2]
[365243136,1749561054981,-1047.60775708,0.00023521,9]
[365243138,1749561054990,-5000.0,0.00023537,2]
[365243140,1749561055000,-16000.0,0.00023547,2]
[365243142,1749561055010,-560.0,0.00023561,4]
[365243144,1749561055019,-300.0,0.00023561,4]
[365243146,1749561055029,-212.26007752,0.00023561,4]
[365243148,1749561055039,-460.0,0.00023561,4]
[365243150,1749561055048,-548.64,0.00023561,4]
[365243152,1749561055058,-743.81,0.00023561,4]
[365243154,1749561055068,-460.0,0.00023561,4]
[365243156,1749561055077,-326.63861384,0.00023561,4]
[365243158,1749561055087,-460.0,0.00023561,4]
[365243160,1749561055096,-460.0,0.00023561,4]
[365243162,1749561055106,-460.0,0.00023561,4]
[365243164,1749561055115,-460.0,0.00023561,4]
[365243166,1749561055126,-460.0,0.00023561,4]
[365243168,1749561055139,-460.0,0.00023561,4]
[365243170,1749561055148,-460.0,0.00023561,4]
[365243172,1749561055157,-556.97,0.00023561,4]
[365243174,1749561055167,-460.0,0.00023561,4]
[365243176,1749561055176,-460.0,0.00023561,4]
[365243178,1749561055187,-536.18056846,0.00023561,4]
[365243180,1749561055196,-734.77,0.00023561,4]
[365243182,1749561055206,-460.0,0.00023561,4]
[365243184,1749561055216,-460.0,0.00023561,4]
[365243186,1749561055226,-801.41,0.00023561,4]
[365243188,1749561055236,-1658.85,0.00023561,4]
[365243190,1749561055246,-460.0,0.00023561,4]
[365243192,1749561055255,-1213.09,0.00023561,4]
[365243194,1749561055265,-387.72755288,0.00023561,4]
[365243197,1749561055275,-460.0,0.00023561,4]
[365243199,1749561055284,-514.93,0.00023561,4]
[365243201,1749561055294,-460.0,0.00023561,4]
[365243203,1749561055304,-1402.9,0.00023561,4]
[365243205,1749561055314,-460.0,0.00023561,4]
[365243207,1749561055323,-460.0,0.00023561,4]
[365243209,1749561055334,-200.0,0.00023561,4]
[365243211,1749561055344,-460.0,0.00023561,4]
[365243213,1749561055355,-476.21,0.00023561,4]
[365243215,1749561055365,-460.0,0.00023561,4]
[365243217,1749561055374,-460.0,0.00023561,4]
[365243219,1749561055384,-570.54,0.00023561,4]
[365243222,1749561055394,-462.2,0.00023561,4]
[365243224,1749561055404,-460.0,0.00023561,4]
[365243226,1749561055413,-2814.84,0.00023561,4]
[365243228,1749561055422,-1561.2,0.00023561,4]
[365243230,1749561055431,-572.65,0.00023561,4]
[365243232,1749561055441,-460.0,0.00023561,4]
[365243234,1749561055451,-3102.55,0.00023561,4]
[365243236,1749561055461,-460.0,0.00023561,4]
[365243238,1749561055470,-460.0,0.00023561,4]
[365243240,1749561055480,-1032.23,0.00023561,4]
[365243242,1749561055489,-460.0,0.00023561,4]
[365243244,1749561055499,-691.63,0.00023561,4]
[365243246,1749561055508,-2508.23,0.00023561,4]
[365243248,1749561055518,-460.0,0.00023561,4]
[365243250,1749561055528,-1142.03,0.00023561,4]
[365243252,1749561055537,-2970.71,0.00023561,4]
[365243254,1749561055547,-764.17,0.00023561,4]
[365243256,1749561055556,-460.0,0.00023561,4]
[365243258,1749561055567,-696.77950595,0.00023561,4]
[365243263,1749561055882,-501.56343184,0.00021095,4]
[365243264,1749561055892,-460.0,0.00021095,4]
[365243265,1749561055902,-460.0,0.00021095,4]
[365243266,1749561055911,-540.0,0.00021369,4]
[365243267,1749561055921,-2267.69049405,0.00023561,4]
[365243268,1749561055931,-1685.96,0.00023561,4]
[365243270,1749561055941,-603.4,0.00023561,4]
[365243271,1749561055950,-741.45,0.00023561,2]
[365243272,1749561055960,-460.0,0.00023561,4]
[365243273,1749561055969,-657.06,0.00023561,4]
[365243274,1749561055979,-460.0,0.00023561,4]
[365243275,1749561055988,-250.0,0.00023561,4]
[365243276,1749561055997,-1753.44,0.00023561,4]
[365243277,1749561056006,-176.37932673,0.00023561,4]
[365243278,1749561056016,-460.0,0.00023561,4]
[365243279,1749561056026,-2332.21,0.00023561,4]
[365243280,1749561056035,-2500.0,0.00023564,2]
[365243281,1749561056045,-2500.0,0.00023564,2]
[365243282,1749561056055,-1750.78,0.000236,2]
[365243284,1749561056065,-2591.48635313,0.00023602,2]
[365243285,1749561056075,-587.0,0.00023606,2]
[365243286,1749561056085,-1047.60775708,0.00023659,9]
[365243287,1749561056094,-2591.48635313,0.00023743,2]
[365243288,1749561056104,-1047.60775708,0.00023797,9]
[365243289,1749561056113,-1150.0,0.000238,5]
[365243291,1749561056122,-2200.0,0.00023815,2]
[365243293,1749561056133,-460.0,0.00023835,4]
[365243295,1749561056144,-548.64,0.00023835,4]
[365243296,1749561056154,-743.81,0.00023835,4]
[365243298,1749561056163,-460.0,0.00023835,4]
[365243300,1749561056174,-200.0,0.00023835,4]
[365243302,1749561056184,-460.0,0.00023835,4]
[365243304,1749561056193,-460.0,0.00023835,4]
[365243305,1749561056203,-460.0,0.00023835,4]
[365243306,1749561056213,-275.669713,0.00023835,7]
[365243307,1749561056223,-460.0,0.00023835,4]
[365243309,1749561056232,-275.669713,0.00023835,7]
[365243311,1749561056242,-460.0,0.00023835,4]
[365243313,1749561056251,-152.047662,0.00023835,7]
[365243315,1749561056261,-460.0,0.00023835,4]
[365243316,1749561056271,-460.0,0.00023835,4]
[365243318,1749561056281,-734.77,0.00023835,4]
[365243320,1749561056293,-522.5,0.00023835,4]
[365243322,1749561056303,-460.0,0.00023835,4]
[365243324,1749561056314,-801.41,0.00023835,4]
[365243326,1749561056325,-1658.85,0.00023835,4]
[365243328,1749561056334,-460.0,0.00023835,4]
[365243330,1749561056343,-1213.09,0.00023835,4]
[365243332,1749561056353,-460.0,0.00023835,4]
[365243334,1749561056363,-514.93,0.00023835,4]
[365243336,1749561056372,-460.0,0.00023835,4]
[365243338,1749561056382,-1402.9,0.00023835,4]
[365243340,1749561056391,-460.0,0.00023835,4]
[365243342,1749561056401,-460.0,0.00023835,4]
[365243344,1749561056410,-460.0,0.00023835,4]
[365243346,1749561056419,-476.21,0.00023835,4]
[365243348,1749561056429,-460.0,0.00023835,4]
[365243350,1749561056438,-460.0,0.00023835,4]
[365243352,1749561056448,-570.54,0.00023835,4]
[365243354,1749561056457,-462.2,0.00023835,4]
[365243356,1749561056468,-460.0,0.00023835,4]
[365243358,1749561056477,-2814.84,0.00023835,4]
[365243360,1749561056487,-1561.2,0.00023835,4]
[365243363,1749561056498,-572.65,0.00023835,4]
[365243364,1749561056509,-460.0,0.00023835,4]
[365243366,1749561056520,-3102.55,0.00023835,4]
[365243368,1749561056530,-460.0,0.00023835,4]
[365243370,1749561056539,-460.0,0.00023835,4]
[365243372,1749561056548,-1032.23,0.00023835,4]
[365243374,1749561056557,-460.0,0.00023835,4]
[365243376,1749561056570,-691.63,0.00023835,4]
[365243378,1749561056579,-2508.23,0.00023835,4]
[365243380,1749561056589,-460.0,0.00023835,4]
[365243382,1749561056598,-1142.03,0.00023835,4]
[365243384,1749561056607,-2970.71,0.00023835,4]
[365243386,1749561056616,-764.17,0.00023835,4]
[365243388,1749561056626,-460.0,0.00023835,4]
[365243390,1749561056635,-2964.47,0.00023835,4]
[365243392,1749561056645,-1685.96,0.00023835,4]
[365243394,1749561056655,-603.4,0.00023835,4]
[365243396,1749561056664,-741.45,0.00023835,2]
[365243398,1749561056674,-460.0,0.00023835,4]
[365243400,1749561056684,-657.06,0.00023835,4]
[365243402,1749561056693,-460.0,0.00023835,4]
[365243404,1749561056702,-1753.44,0.00023835,4]
[365243406,1749561056712,-460.0,0.00023835,4]
[365243408,1749561056721,-2332.21,0.00023835,4]
[365243410,1749561056731,-3000.0,0.00023864,2]
[365243412,1749561056740,-2591.48635313,0.00023883,2]
[365243414,1749561056750,-573.3540349,0.0002389,2]
[365243416,1749561056759,-161.381195,0.0002389,2]
[365243418,1749561056769,-309.5761506,0.0002389,2]
[365243420,1749561056778,-309.5232587,0.0002389,2]
[365243422,1749561056787,-357.0740979,0.0002389,2]
[365243424,1749561056796,-2280.78673806,0.000239,2]
[365243426,1749561056805,-1047.60775708,0.00023934,10]
[365243427,1749561056815,-151.0,0.00024,7]
[365243429,1749561056826,-2000.0,0.00024,2]
[365243430,1749561056835,-2000.0,0.00024,2]
[365243431,1749561056845,-185.0,0.00024,7]
[365243432,1749561056854,-185.0,0.00024,7]
[365243433,1749561056864,-185.0,0.00024,10]
[365243434,1749561056873,-229.6792923,0.00024,7]
[365243436,1749561056882,-185.0,0.00024,10]
[365243437,1749561056892,-306.0,0.00024,2]
[365243438,1749561056901,-153.0,0.00024,2]
[365243439,1749561056910,-153.0,0.00024,2]
[365243440,1749561056920,-2591.48635313,0.00024024,2]
[365243441,1749561056929,-1047.60775708,0.00024072,10]
[365243442,1749561056939,-5000.0,0.00024085,2]
[365243443,1749561056948,-16000.0,0.00024095,2]
[365243444,1749561056957,-1771.675343,0.00024099,3]
[365243445,1749561056967,-2000.0,0.000241,2]
[365243446,1749561056976,-2000.0,0.000241,2]
[365243447,1749561056985,-229.6792923,0.000241,3]
[365243448,1749561056995,-160.0,0.000241,3]
[365243449,1749561057004,-834.9046531,0.000241,3]
[365243450,1749561057013,-842.5625,0.000241,3]
[365243451,1749561057023,-460.0,0.00024109,4]
[365243452,1749561057032,-548.64,0.00024109,4]
[365243453,1749561057041,-743.81,0.00024109,4]
[365243454,1749561057051,-202.91241446,0.00024109,4]
[365243455,1749561057060,-460.0,0.00024109,4]
[365243456,1749561057070,-460.0,0.00024109,4]
[365243457,1749561057079,-460.0,0.00024109,4]
[365243458,1749561057089,-460.0,0.00024109,4]
[365243459,1749561057098,-460.0,0.00024109,4]
[365243460,1749561057108,-151.0,0.00024109,7]
[365243461,1749561057118,-220.0,0.00024109,4]
[365243462,1749561057129,-460.0,0.00024109,4]
[365243463,1749561057143,-460.0,0.00024109,4]
[365243464,1749561057156,-460.0,0.00024109,4]
[365243465,1749561057166,-460.0,0.00024109,4]
[365243466,1749561057177,-460.0,0.00024109,4]
[365243467,1749561057187,-460.0,0.00024109,4]
[365243468,1749561057196,-460.0,0.00024109,4]
[365243469,1749561057207,-600.92944006,0.00024109,4]
[365243470,1749561057216,-734.77,0.00024109,4]
[365243471,1749561057226,-460.0,0.00024109,4]
[365243472,1749561057235,-801.41,0.00024109,4]
[365243473,1749561057245,-1658.85,0.00024109,4]
[365243474,1749561057254,-460.0,0.00024109,4]
[365243475,1749561057264,-1213.09,0.00024109,4]